bitfinex/quotes_BTCUSD_20250615
["timestamp","ask_amount","ask_price","bid_price","bid_amount"]
[1750003717450,0.003,105800.0,105790.0,1.18761884]
[1750003720689,0.003,105800.0,105790.0,1.18461884]
[1750003720902,0.003,105800.0,105790.0,1.18761884]
[1750003721566,0.02795046,105810.0,105800.0,0.25263021]
[1750003721780,0.02795046,105810.0,105800.0,0.85658711]
[1750003722005,0.04394877,105820.0,105810.0,0.23191052]
[1750003722227,0.04394868,105820.0,105810.0,0.23191052]
[1750003722480,0.05339851,105820.0,105810.0,0.23191052]
[1750003722910,0.07074235,105820.0,105810.0,0.23191052]
[1750003724832,0.07574235,105820.0,105810.0,0.23291052]
[1750003725000,0.06629252,105820.0,105810.0,0.23291052]
[1750003725195,0.07574226,105820.0,105810.0,0.23291052]
[1750003725395,0.07574226,105820.0,105810.0,0.87080742]
[1750003725396,0.02234384,105820.0,105810.0,0.87080742]
[1750003725609,0.005,105820.0,105810.0,0.87080742]
[1750003725758,0.005,105820.0,105810.0,1.58650608]
[1750003725967,0.005,105820.0,105810.0,0.98254918]
[1750003726630,0.13463853,105830.0,105820.0,0.25128913]
[1750003726836,0.1440872,105830.0,105820.0,0.25128913]
[1750003727043,0.1440872,105830.0,105820.0,0.85524603]
[1750003727278,0.16973604,105830.0,105820.0,0.84024603]
[1750003727736,0.16987763,105830.0,105820.0,0.84024603]
[1750003728159,0.16042879,105830.0,105820.0,0.84024603]
[1750003728371,0.16442879,105830.0,105820.0,0.84024603]
[1750003729440,0.16442879,105830.0,105820.0,0.84124603]
[1750003729651,0.16442879,105830.0,105820.0,0.25358913]
[1750003729652,0.13878012,105830.0,105820.0,0.25358913]
[1750003729870,0.13878012,105830.0,105820.0,0.85754603]
[1750003730120,0.13878012,105830.0,105820.0,0.83860603]
[1750003730764,0.1482287,105830.0,105820.0,0.83860603]
[1750003730972,0.13878012,105830.0,105820.0,0.83860603]
[1750003731673,0.12933163,105830.0,105820.0,0.83860603]
[1750003731883,0.13878012,105830.0,105820.0,0.83860603]
[1750003732313,0.13878003,105830.0,105820.0,0.83860603]
[1750003732772,0.14822861,105830.0,105820.0,0.83860603]
[1750003732999,0.13878003,105830.0,105820.0,0.83860603]
[1750003733510,0.14822861,105830.0,105820.0,0.83860603]
[1750003733732,0.11988332,105830.0,105820.0,0.95084779]
[1750003733949,0.10306975,105830.0,105820.0,0.95084779]
[1750003734803,0.10306975,105830.0,105820.0,0.96538864]
[1750003735024,0.10306975,105830.0,105820.0,1.11934864]
[1750003735492,0.10306975,105830.0,105820.0,0.36143174]
[1750003735717,0.10306975,105830.0,105820.0,1.10334864]
[1750003736162,0.12012205,105830.0,105820.0,1.10334864]
[1750003736643,0.10306975,105830.0,105820.0,1.10334864]
[1750003737379,0.10306975,105830.0,105820.0,0.94938864]
[1750003737595,0.10306975,105830.0,105820.0,1.10334864]
[1750003738031,0.10306975,105830.0,105820.0,1.11854864]
[1750003738943,0.10306975,105830.0,105820.0,1.10334864]
[1750003740063,0.11993964,105830.0,105820.0,1.10334864]
[1750003740279,0.10306975,105830.0,105820.0,1.10334864]
[1750003742856,0.10306975,105830.0,105820.0,1.11914864]
[1750003743150,0.10306975,105830.0,105820.0,1.14739401]
[1750003743574,0.10306975,105830.0,105820.0,0.97763401]
[1750003743782,0.10306975,105830.0,105820.0,1.13155401]
[1750003744420,0.10306975,105830.0,105820.0,1.13055401]
[1750003744844,0.10306975,105830.0,105820.0,0.97963401]
[1750003744845,0.09906975,105830.0,105820.0,0.97963401]
[1750003745056,0.09906975,105830.0,105820.0,0.37567711]
[1750003745270,0.11516975,105830.0,105820.0,1.13619401]
[1750003745704,0.12461806,105830.0,105820.0,1.13619401]
[1750003745906,0.11516975,105830.0,105820.0,1.13619401]
[1750003746122,0.11516975,105830.0,105820.0,1.10794864]
[1750003746310,0.11516975,105830.0,105820.0,1.13619401]
[1750003746447,0.12461806,105830.0,105820.0,1.13619401]
[1750003746692,0.11516975,105830.0,105820.0,1.13619401]
[1750003747126,0.12461815,105830.0,105820.0,1.13619401]
[1750003747691,0.12461806,105830.0,105820.0,0.53223711]
[1750003747911,0.13406646,105830.0,105820.0,1.13619401]
[1750003748328,0.12461806,105830.0,105820.0,1.13619401]
[1750003748539,0.11516975,105830.0,105820.0,1.13619401]
[1750003748746,0.12461806,105830.0,105820.0,1.13619401]
[1750003749729,0.11516975,105830.0,105820.0,1.13619401]
[1750003750162,0.12461806,105830.0,105820.0,1.13619401]
[1750003750597,0.11516975,105830.0,105820.0,1.13619401]
[1750003750865,0.12461806,105830.0,105820.0,1.13619401]
[1750003751307,0.11516975,105830.0,105820.0,1.13619401]
[1750003751735,0.12461806,105830.0,105820.0,1.13619401]
[1750003752474,0.16936406,105830.0,105820.0,0.36886773]
[1750003752683,0.77332096,105830.0,105820.0,0.50399174]
[1750003752890,0.94340658,105830.0,105820.0,0.03648085]
[1750003753103,0.94340658,105830.0,105820.0,0.02194]
[1750003753515,0.94340658,105830.0,105820.0,0.03648085]
[1750003753719,0.94340658,105830.0,105820.0,0.22548103]
[1750003754158,0.94340658,105830.0,105820.0,0.03648085]
[1750003754996,0.87597798,105830.0,105820.0,0.03648085]
[1750003755649,0.9721272,105830.0,105820.0,0.03648085]
[1750003755950,0.87597798,105830.0,105820.0,0.03648085]
[1750003757787,0.88263037,105830.0,105820.0,0.03648085]
[1750003757996,0.88263038,105830.0,105820.0,0.03648085]
[1750003758227,0.89150023,105830.0,105820.0,0.03648085]
[1750003758527,0.89150023,105830.0,105820.0,0.23493103]
[1750003758634,0.8915002,105830.0,105820.0,0.23493103]
[1750003758851,0.89150018,105830.0,105820.0,0.23493103]
[1750003759281,0.89150018,105830.0,105820.0,0.24438086]
[1750003759282,0.34610205,105830.0,105820.0,0.24438086]
[1750003759513,0.34831946,105830.0,105820.0,0.23493103]
[1750003759745,0.34831949,105830.0,105820.0,0.24438095]
[1750003760623,0.33944968,105830.0,105820.0,0.24438095]
[1750003760842,0.34831949,105830.0,105820.0,0.24438095]
[1750003761055,0.33944968,105830.0,105820.0,0.25383078]
[1750003761270,0.34831948,105830.0,105820.0,0.25383078]
[1750003761930,0.43502002,105830.0,105820.0,0.24438095]
[1750003762408,0.43502003,105830.0,105820.0,0.24438095]
[1750003762618,0.43502002,105830.0,105820.0,0.24438095]
[1750003762829,0.42615023,105830.0,105820.0,0.24438095]
[1750003763045,0.43502002,105830.0,105820.0,0.24438095]
[1750003763902,0.42615023,105830.0,105820.0,0.23493103]
[1750003764113,0.43502005,105830.0,105820.0,0.23493103]
[1750003764321,0.4328026,105830.0,105820.0,0.23493103]
[1750003764502,0.42615023,105830.0,105820.0,0.23493103]
[1750003764719,0.43502005,105830.0,105820.0,0.23493103]
[1750003764959,0.44167242,105830.0,105820.0,0.23493103]
[1750003765181,0.96209942,105830.0,105820.0,0.03648085]
[1750003765395,0.43222355,105830.0,105820.0,0.03648085]
[1750003765613,0.96209946,105830.0,105820.0,0.03648085]
[1750003765826,0.96875186,105830.0,105820.0,0.03648085]
[1750003766055,0.97762172,105830.0,105820.0,0.03648085]
[1750003766533,0.97762173,105830.0,105820.0,0.03648085]
[1750003766869,0.97096933,105830.0,105820.0,0.03648085]
[1750003767082,0.96875186,105830.0,105820.0,0.03648085]
[1750003767295,0.97096933,105830.0,105820.0,0.03648085]
[1750003767510,0.97762173,105830.0,105820.0,0.03648085]
[1750003767930,0.96209946,105830.0,105820.0,0.03648085]
[1750003768145,0.97762173,105830.0,105820.0,0.03648085]
[1750003768564,0.97096933,105830.0,105820.0,0.03648085]
[1750003768780,0.96875188,105830.0,105820.0,0.03648085]
[1750003769015,0.96209946,105830.0,105820.0,0.03648085]
[1750003769230,0.9776218,105830.0,105820.0,0.03648085]
[1750003769445,0.97096937,105830.0,105820.0,0.03648085]
[1750003769657,0.9687519,105830.0,105820.0,0.03648085]
[1750003769893,0.97762182,105830.0,105820.0,0.03648085]
[1750003770174,0.9687519,105830.0,105820.0,0.03648085]
[1750003770609,0.96209946,105830.0,105820.0,0.03648085]
[1750003771107,0.97762301,105830.0,105820.0,0.03648085]
[1750003771338,0.97097006,105830.0,105820.0,0.03648085]
[1750003771571,0.97762304,105830.0,105820.0,0.03648085]
[1750003771802,0.97097009,105830.0,105820.0,0.03648085]
[1750003772021,0.97762306,105830.0,105820.0,0.03648085]
[1750003772246,1.00602808,105830.0,105820.0,0.03648085]
[1750003772471,0.96875244,105830.0,105820.0,0.03648085]
[1750003772712,0.97762308,105830.0,105820.0,0.03648085]
[1750003772932,0.99050446,105830.0,105820.0,0.03648085]
[1750003773128,1.00602808,105830.0,105820.0,0.03648085]
[1750003773378,0.96209946,105830.0,105820.0,0.03648085]
[1750003773607,0.99050446,105830.0,105820.0,0.03648085]
[1750003774308,0.99050446,105830.0,105820.0,0.02194]
[1750003774536,1.08674622,105830.0,105820.0,0.02194]
[1750003774766,6.13675522,105830.0,105820.0,0.02194]
[1750003775034,6.21068964,105830.0,105820.0,0.02194]
[1750003775252,6.21952824,105830.0,105820.0,0.02194]
[1750003775471,6.21852839,105830.0,105820.0,0.02194]
[1750003775695,6.21852838,105830.0,105820.0,0.02194]
[1750003775935,0.19845001,105820.0,105810.0,0.01894]
[1750003776148,0.92873306,105820.0,105810.0,0.01894]
[1750003776573,5.63874206,105820.0,105810.0,0.01894]
[1750003776793,6.00715106,105820.0,105810.0,0.01894]
[1750003777009,0.22876877,105810.0,105800.0,0.03348085]
[1750003777244,0.91942327,105810.0,105800.0,0.03348085]
[1750003777461,0.99542146,105810.0,105800.0,0.03348085]
[1750003778975,0.99542146,105810.0,105800.0,0.03648085]
[1750003779273,0.99542146,105810.0,105800.0,0.22551676]
[1750003779825,1.00487209,105810.0,105800.0,0.22551676]
[1750003780044,0.46813759,105810.0,105800.0,0.23496846]
[1750003781360,0.3905794,105810.0,105800.0,0.23496846]
[1750003781622,0.3752794,105810.0,105800.0,0.23496846]
[1750003781837,0.38415155,105810.0,105800.0,0.24442007]
[1750003782049,0.39080566,105810.0,105800.0,0.24442007]
[1750003782445,0.39080569,105810.0,105800.0,0.24442007]
[1750003782680,0.38193353,105810.0,105800.0,0.24442007]
[1750003782917,0.38415156,105810.0,105800.0,0.24442007]
[1750003783130,0.22743506,105810.0,105800.0,0.23496846]
[1750003783346,0.21190877,105810.0,105800.0,0.23496846]
[1750003783560,0.21190877,105810.0,105800.0,0.25387159]
[1750003783779,0.21190877,105810.0,105800.0,0.24442007]
[1750003783994,0.21190877,105810.0,105800.0,0.23496846]
[1750003786446,0.27015209,105810.0,105800.0,0.23496846]
[1750003786657,0.26226137,105810.0,105800.0,0.03648085]
[1750003787083,0.26226137,105810.0,105800.0,0.22551676]
[1750003788153,0.20401805,105810.0,105800.0,0.22551676]
[1750003790152,0.20401805,105810.0,105800.0,0.23496855]
[1750003791645,0.20401805,105810.0,105800.0,0.03648085]
[1750003792064,0.20401805,105810.0,105800.0,0.22551676]
[1750003792276,0.20401805,105810.0,105800.0,0.03648085]
[1750003793385,0.20401805,105810.0,105800.0,0.22551676]
[1750003793604,0.21911805,105810.0,105800.0,0.03648085]
[1750003793819,0.75585255,105810.0,105800.0,0.03648085]
[1750003798423,0.21911805,105810.0,105800.0,0.03648085]
[1750003798640,0.75585255,105810.0,105800.0,0.03648085]
[1750003798865,1.19200177,105810.0,105800.0,0.02194]
[1750003799084,6.69713419,105810.0,105800.0,0.02194]
[1750003799293,6.72816026,105810.0,105800.0,0.02194]
[1750003799726,6.76320158,105810.0,105800.0,0.02194]
[1750003799952,6.75657326,105810.0,105800.0,0.01894]
[1750003800168,6.76520154,105810.0,105800.0,0.01894]
[1750003800398,7.25090154,105810.0,105800.0,0.002]
[1750003800669,7.25090154,105810.0,105770.0,0.01894]
[1750003800670,0.22942505,105780.0,105770.0,0.01894]
[1750003800886,0.9962805,105780.0,105770.0,0.01894]
[1750003801775,0.21998953,105770.0,105760.0,0.01894]
[1750003802007,0.7570771,105770.0,105760.0,0.03662814]
[1750003802259,0.7570771,105770.0,105760.0,0.05116899]
[1750003802487,0.7570771,105770.0,105760.0,0.03348085]
[1750003802729,0.85322632,105770.0,105760.0,0.03348085]
[1750003802957,0.85322632,105770.0,105760.0,0.03662855]
[1750003803185,0.85322632,105770.0,105760.0,0.0366286]
[1750003803413,1.19322632,105770.0,105760.0,0.05423265]
[1750003803680,5.90323532,105770.0,105760.0,0.03969235]
[1750003803901,5.90323532,105770.0,105760.0,0.02194]
[1750003804134,6.08995787,105770.0,105760.0,0.02194]
[1750003804348,6.08330811,105770.0,105760.0,0.0396929]
[1750003804568,6.08995791,105770.0,105760.0,0.03969294]
[1750003804808,0.22070741,105760.0,105750.0,0.01894]
[1750003805024,1.0078642,105760.0,105750.0,0.01894]
[1750003805246,0.20462529,105750.0,105740.0,0.19907221]
[1750003805463,0.21408128,105750.0,105740.0,0.22306995]
[1750003805700,0.01891162,105750.0,105740.0,0.25738337]
[1750003805917,0.21392864,105750.0,105740.0,0.82022729]
[1750003806141,0.19501666,105750.0,105740.0,0.82022729]
[1750003806352,0.20447256,105750.0,105740.0,0.82022729]
[1750003806565,0.20447256,105750.0,105740.0,0.28313972]
[1750003806786,0.19501666,105750.0,105740.0,0.28313972]
[1750003807008,0.20447256,105750.0,105740.0,0.28313972]
[1750003808012,0.19501666,105750.0,105740.0,0.28513972]
[1750003808218,0.20447265,105750.0,105740.0,0.30289211]
[1750003808426,0.20447256,105750.0,105740.0,0.30289208]
[1750003808637,0.20447256,105750.0,105740.0,0.28513972]
[1750003808851,0.20447256,105750.0,105740.0,0.30289206]
[1750003809066,0.20447256,105750.0,105740.0,0.30689206]
[1750003809276,0.20447256,105750.0,105740.0,0.30689208]
[1750003809482,0.20447256,105750.0,105740.0,0.30689206]
[1750003809926,0.19501666,105750.0,105740.0,0.30689207]
[1750003810168,0.20447256,105750.0,105740.0,0.30689207]
[1750003810375,0.20447256,105750.0,105740.0,0.30689206]
[1750003810580,0.20447256,105750.0,105740.0,0.28913972]
[1750003810794,0.20447256,105750.0,105740.0,0.30689195]
[1750003811014,0.21392864,105750.0,105740.0,0.30689193]
[1750003811455,0.20447256,105750.0,105740.0,0.28913972]
[1750003811681,0.20447256,105750.0,105740.0,0.30689199]
[1750003811943,0.20447256,105750.0,105740.0,0.28913972]
[1750003812189,0.20447256,105750.0,105740.0,0.30689198]
[1750003812371,0.20447256,105750.0,105740.0,0.28913972]
[1750003812645,0.20447265,105750.0,105740.0,0.30689198]
[1750003812860,0.20447265,105750.0,105740.0,0.28913972]
[1750003813075,0.19501666,105750.0,105740.0,0.30689199]
[1750003813284,0.19501666,105750.0,105740.0,0.28913972]
[1750003813482,0.20447265,105750.0,105740.0,0.28913972]
[1750003813974,0.20447265,105750.0,105740.0,0.30689217]
[1750003814181,0.21392873,105750.0,105740.0,0.30689217]
[1750003814382,0.20447265,105750.0,105740.0,0.30689217]
[1750003814537,0.19501666,105750.0,105740.0,0.30689217]
[1750003814706,0.20447256,105750.0,105740.0,0.30689217]
[1750003814909,0.19501666,105750.0,105740.0,0.2891399]
[1750003815108,0.19501666,105750.0,105740.0,0.3080799]
[1750003815560,0.20447265,105750.0,105740.0,0.3080799]
[1750003815756,0.21392873,105750.0,105740.0,0.3080799]
[1750003816002,0.20447265,105750.0,105740.0,0.2917799]
[1750003816203,0.19501666,105750.0,105740.0,0.2917799]
[1750003816407,0.20447256,105750.0,105740.0,0.2917799]
[1750003816613,0.21392855,105750.0,105740.0,0.2917799]
[1750003817305,0.19501666,105750.0,105740.0,0.2917799]
[1750003817552,0.20447247,105750.0,105740.0,0.2917799]
[1750003817772,0.19501666,105750.0,105740.0,0.3079799]
[1750003818868,0.19501666,105750.0,105740.0,0.2917799]
[1750003819077,0.20447256,105750.0,105740.0,0.2917799]
[1750003819288,0.19501666,105750.0,105740.0,0.2917799]
[1750003819496,0.20447256,105750.0,105740.0,0.2917799]
[1750003819729,0.20447256,105750.0,105740.0,0.4457399]
[1750003820159,0.19501666,105750.0,105740.0,0.4457399]
[1750003820374,0.20447256,105750.0,105740.0,0.4457399]
[1750003821903,0.19501666,105750.0,105740.0,0.4457399]
[1750003823192,0.20447247,105750.0,105740.0,0.4457399]
[1750003823440,0.21392846,105750.0,105740.0,0.4457399]
[1750003823642,0.21392837,105750.0,105740.0,0.4457399]
[1750003823993,1.32909033,105750.0,105740.0,0.00317068]
[1750003824192,1.32909033,105750.0,105680.0,0.08921125]
[1750003824193,0.00946145,105690.0,105680.0,0.08921125]
[1750003824422,0.89086168,105690.0,105680.0,0.03203979]
[1750003824651,0.94887331,105690.0,105680.0,0.02320524]
[1750003824894,0.96829183,105690.0,105680.0,0.02320524]
[1750003825116,0.43784731,105690.0,105680.0,0.02320524]
[1750003825350,0.8787855,105690.0,105680.0,0.02320524]
[1750003825586,0.87878505,105690.0,105680.0,0.07180741]
[1750003825816,1.02734261,105690.0,105680.0,0.07180743]
[1750003826094,1.03398483,105690.0,105680.0,0.03308743]
[1750003826318,1.03598468,105690.0,105680.0,0.03308744]
[1750003826568,1.03598447,105690.0,105680.0,0.04762829]
[1750003826783,1.02934261,105690.0,105680.0,0.08734829]
[1750003826991,1.03598463,105690.0,105680.0,0.08734829]
[1750003827228,1.13213391,105690.0,105680.0,0.04762829]
[1750003827478,1.13213385,105690.0,105680.0,0.08734829]
[1750003827697,1.13213396,105690.0,105680.0,0.08734829]
[1750003827927,1.13213395,105690.0,105680.0,0.07846609]
[1750003828161,1.16108584,105690.0,105680.0,0.08734829]
[1750003828386,1.16108583,105690.0,105680.0,0.08734829]
[1750003828611,1.15444372,105690.0,105680.0,0.08734829]
[1750003828828,1.15444372,105690.0,105680.0,0.08738829]
[1750003829097,1.16108579,105690.0,105680.0,0.07850609]
[1750003829277,1.15444372,105690.0,105680.0,0.07850609]
[1750003829488,1.0582945,105690.0,105680.0,0.08738829]
[1750003829707,1.06493654,105690.0,105680.0,0.08738829]
[1750003829922,1.06493653,105690.0,105680.0,0.07850609]
[1750003830174,1.0582945,105690.0,105680.0,0.07850609]
[1750003830420,1.07389663,105690.0,105680.0,0.08738829]
[1750003830613,1.08053863,105690.0,105680.0,0.08738829]
[1750003830874,1.07389663,105690.0,105680.0,0.04762824]
[1750003831088,1.08053871,105690.0,105680.0,0.08738824]
[1750003831329,1.08053871,105690.0,105680.0,0.08738823]
[1750003831562,1.08053872,105690.0,105680.0,0.07850609]
[1750003831816,1.08053872,105690.0,105680.0,0.08738823]
[1750003832419,1.08053873,105690.0,105680.0,0.07850609]
[1750003832642,1.08053873,105690.0,105680.0,0.08738823]
[1750003832855,1.07389663,105690.0,105680.0,0.03874609]
[1750003833073,1.07389663,105690.0,105680.0,0.08738823]
[1750003833289,1.08053859,105690.0,105680.0,0.08738823]
[1750003833524,1.08053873,105690.0,105680.0,0.08738823]
[1750003833740,0.38404454,105690.0,105680.0,0.08738823]
[1750003833966,0.93059356,105690.0,105680.0,0.08738823]
[1750003834228,0.94005492,105690.0,105680.0,0.07850609]
[1750003834409,0.94005501,105690.0,105680.0,0.07850609]
[1750003834617,0.93341274,105690.0,105680.0,0.27721908]
[1750003834824,0.94005518,105690.0,105680.0,0.28668133]
[1750003835052,0.94005516,105690.0,105680.0,0.28668133]
[1750003835262,0.94005517,105690.0,105680.0,0.24692133]
[1750003835535,0.94005518,105690.0,105680.0,0.24692133]
[1750003835751,0.93341274,105690.0,105680.0,0.23745908]
[1750003835970,0.94005515,105690.0,105680.0,0.27721908]
[1750003836195,0.94005515,105690.0,105680.0,0.28668142]
[1750003836414,0.93341274,105690.0,105680.0,0.28668142]
[1750003836851,0.96130355,105690.0,105680.0,0.03874609]
[1750003837067,0.40296739,105690.0,105680.0,0.23745917]
[1750003837281,0.17651617,105690.0,105680.0,0.30560567]
[1750003837496,0.16041282,105690.0,105680.0,0.32110567]
[1750003837707,0.13146093,105690.0,105680.0,0.41734743]
[1750003837921,0.13146093,105690.0,105680.0,1.126555]
[1750003838547,0.13146093,105690.0,105680.0,0.39378743]
[1750003838762,0.6780095,105690.0,105680.0,0.36208743]
[1750003838965,0.6760095,105690.0,105680.0,0.40184743]
[1750003839182,0.6665485,105690.0,105680.0,0.36208743]
[1750003839425,0.67700932,105690.0,105680.0,0.40084743]
[1750003839819,0.13992175,105690.0,105680.0,0.36208743]
[1750003840031,0.13046093,105690.0,105680.0,0.40184743]
[1750003840242,0.13992175,105690.0,105680.0,0.36208743]
[1750003840481,0.13046093,105690.0,105680.0,0.40184743]
[1750003842024,0.13046093,105690.0,105680.0,0.37758743]
[1750003842223,0.13046093,105690.0,105680.0,0.57438743]
[1750003843728,0.13046093,105690.0,105680.0,1.127175]
[1750003843975,0.001,105690.0,105680.0,1.146125]
[1750003844658,0.001,105690.0,105680.0,0.39653743]
[1750003844964,0.80289904,105700.0,105690.0,0.23218505]
[1750003845351,0.79343973,105700.0,105690.0,0.25110786]
[1750003845352,0.88958895,105700.0,105690.0,0.23218505]
[1750003845517,0.78397953,105700.0,105690.0,0.40714768]
[1750003845723,0.79021907,105700.0,105690.0,0.25110768]
[1750003845941,0.79021907,105700.0,105690.0,0.39768641]
[1750003846400,0.79021907,105700.0,105690.0,0.39868641]
[1750003846848,0.78075852,105700.0,105690.0,0.23518505]
[1750003847065,0.24367095,105700.0,105690.0,0.23518505]
[1750003847478,0.24367095,105700.0,105690.0,0.2446465]
[1750003847901,0.25313141,105700.0,105690.0,0.26356895]
[1750003848306,0.25313141,105700.0,105690.0,0.25410786]
[1750003848501,0.25313141,105700.0,105690.0,0.2446465]
[1750003848929,0.24367095,105700.0,105690.0,0.2446465]
[1750003849545,0.24367095,105700.0,105690.0,0.23270514]
[1750003849999,0.24367095,105700.0,105690.0,0.22324351]
[1750003850238,0.28766469,105700.0,105690.0,0.03401085]
[1750003851006,0.24367095,105700.0,105690.0,0.22324351]
[1750003851207,0.24367095,105700.0,105690.0,0.03301085]
[1750003851384,0.7478932,105700.0,105690.0,0.03301085]
[1750003851586,0.7488932,105700.0,105690.0,0.03101085]
[1750003852007,0.24467095,105700.0,105690.0,0.03201085]
[1750003852420,0.34082017,105700.0,105690.0,0.03201085]
[1750003853473,0.84504242,105700.0,105690.0,0.03201085]
[1750003854086,0.34744799,105700.0,105690.0,0.03201085]
[1750003854306,0.34082017,105700.0,105690.0,0.03201085]
[1750003854518,0.34744787,105700.0,105690.0,0.03201085]
[1750003854892,0.34082017,105700.0,105690.0,0.03201085]
[1750003855129,0.25129863,105700.0,105690.0,0.03201085]
[1750003855360,0.24467095,105700.0,105690.0,0.03201085]
[1750003857485,0.27311095,105700.0,105690.0,0.03201085]
[1750003863079,0.27311095,105700.0,105690.0,0.01995]
[1750003864062,0.27973922,105700.0,105690.0,0.01995]
[1750003864464,0.27973916,105700.0,105690.0,0.01995]
[1750003864672,0.27311095,105700.0,105690.0,0.01995]
[1750003864906,0.07181668,105700.0,105690.0,0.28581787]
[1750003865109,0.27049216,105700.0,105690.0,0.24838496]
[1750003865318,0.27049216,105700.0,105690.0,0.25784623]
[1750003865531,0.26103196,105700.0,105690.0,0.25784623]
[1750003865721,0.26103196,105700.0,105690.0,0.24264623]
[1750003866379,0.26103196,105700.0,105690.0,0.25210741]
[1750003867004,0.2515715,105700.0,105690.0,0.23318496]
[1750003867463,0.2515715,105700.0,105690.0,0.24264632]
[1750003867676,0.24211095,105700.0,105690.0,0.23318496]
[1750003867886,0.24211095,105700.0,105690.0,0.24264632]
[1750003869287,0.24211095,105700.0,105690.0,0.25210759]
[1750003869719,0.24211095,105700.0,105690.0,0.26156877]
[1750003869720,0.24205136,105700.0,105690.0,0.26156877]
[1750003870170,0.27049036,105700.0,105690.0,0.26156877]
[1750003870595,0.07181559,105700.0,105690.0,0.27716859]
[1750003870756,0.03391604,105700.0,105690.0,0.27716859]
[1750003870956,0.0433765,105700.0,105690.0,0.27716859]
[1750003871165,0.03391604,105700.0,105690.0,0.27716859]
[1750003871725,0.03391604,105700.0,105690.0,0.43272859]
[1750003872007,0.05283652,105700.0,105690.0,0.43272859]
[1750003872243,0.0244554,105700.0,105690.0,0.49724703]
[1750003872456,0.001,105700.0,105690.0,0.51244703]
[1750003873491,0.001,105700.0,105690.0,0.44792859]
[1750003874949,0.01045993,105700.0,105690.0,0.44792859]
[1750003875154,0.001,105700.0,105690.0,0.44792859]
[1750003875576,0.01045993,105700.0,105690.0,0.44792859]
[1750003876422,0.02502668,105700.0,105690.0,0.44792859]
[1750003876632,0.01991995,105700.0,105690.0,0.44792859]
[1750003878237,0.02938015,105700.0,105690.0,0.44792859]
[1750003878439,0.02938024,105700.0,105690.0,0.43272859]
[1750003878650,0.01991995,105700.0,105690.0,0.43272859]
[1750003879128,0.02938015,105700.0,105690.0,0.43272859]
[1750003879336,0.01991995,105700.0,105690.0,0.43272859]
[1750003879540,0.02938015,105700.0,105690.0,0.43272859]
[1750003879749,0.87479342,105700.0,105690.0,0.41356632]
[1750003880016,0.14778042,105700.0,105690.0,0.41688841]
[1750003880139,0.79544615,105700.0,105690.0,0.22372351]
[1750003880343,0.79282531,105700.0,105690.0,0.38858505]
[1750003880565,0.79282531,105700.0,105690.0,0.03449085]
[1750003880784,0.87951389,105700.0,105690.0,0.03449085]
[1750003880997,0.78336467,105700.0,105690.0,0.03449085]
[1750003882287,0.78336467,105700.0,105690.0,0.24264659]
[1750003882288,0.25502617,105700.0,105690.0,0.24264659]
[1750003882498,0.25502617,105700.0,105690.0,0.25210777]
[1750003882703,0.26448628,105700.0,105690.0,0.25210777]
[1750003882974,0.24818628,105700.0,105690.0,0.27102986]
[1750003886043,0.05897153,105700.0,105690.0,0.27102986]
[1750003886868,0.24818628,105700.0,105690.0,0.27102986]
[1750003887241,0.05897153,105700.0,105690.0,0.27102986]
[1750003888436,0.24818628,105700.0,105690.0,0.27102986]
[1750003888916,0.05897153,105700.0,105690.0,0.27102986]
[1750003889211,0.58818628,105700.0,105690.0,0.27102986]
[1750003889433,0.40843226,105700.0,105690.0,0.27102986]
[1750003889669,0.39897153,105700.0,105690.0,0.27102986]
[1750003890351,0.58818628,105700.0,105690.0,0.27102986]
[1750003891057,0.59764701,105700.0,105690.0,0.27102986]
[1750003891290,0.59764701,105700.0,105690.0,0.26156886]
[1750003891788,6.07502529,105700.0,105690.0,0.001]
[1750003892014,6.13828939,105700.0,105690.0,0.001]
[1750003892248,6.13828914,105700.0,105690.0,0.001]
[1750003892463,6.13166622,105700.0,105690.0,0.001]
[1750003892711,6.13828912,105700.0,105690.0,0.001]
[1750003892962,6.13728912,105700.0,105690.0,0.001]
[1750003893198,6.14228912,105700.0,105690.0,0.002]
[1750003893431,6.14228912,105700.0,105690.0,0.001]
[1750003893667,6.14227722,105700.0,105690.0,0.001]
[1750003893935,6.14527722,105700.0,105690.0,0.001]
[1750003894170,5.28080311,105690.0,105680.0,0.02320524]
[1750003894401,6.03919098,105690.0,105680.0,0.02320524]
[1750003894646,6.09848176,105690.0,105680.0,0.02320524]
[1750003894851,5.94304176,105690.0,105680.0,0.02320524]
[1750003895065,5.30900104,105690.0,105680.0,0.02320524]
[1750003895261,0.72631411,105690.0,105680.0,0.02320524]
[1750003895505,0.72931411,105690.0,105680.0,0.02320524]
[1750003895717,1.26711307,105690.0,105680.0,0.02320524]
[1750003896574,1.14493197,105690.0,105680.0,0.02420524]
[1750003896778,1.30053197,105690.0,105680.0,0.02420524]
[1750003897190,1.14493197,105690.0,105680.0,0.02420524]
[1750003897405,1.30053197,105690.0,105680.0,0.02420524]
[1750003898989,1.12843197,105690.0,105680.0,0.02420524]
[1750003899240,0.57175547,105690.0,105680.0,0.22291832]
[1750003899460,0.7211771,105690.0,105680.0,0.24692151]
[1750003899680,0.7211771,105690.0,105680.0,0.26584593]
[1750003900097,0.7211771,105690.0,105680.0,0.27530801]
[1750003900349,0.37638435,105690.0,105680.0,0.27530748]
[1750003900575,0.56561701,105690.0,105680.0,0.29030704]
[1750003900808,0.37638435,105690.0,105680.0,0.29030704]
[1750003901019,0.56561701,105690.0,105680.0,0.29030704]
[1750003901238,0.57507864,105690.0,105680.0,0.26192107]
[1750003901483,0.56561728,105690.0,105680.0,0.2619216]
[1750003901716,0.56561728,105690.0,105680.0,0.27138394]
[1750003901918,1.20570401,105690.0,105680.0,0.23745917]
[1750003902142,5.93141301,105690.0,105680.0,0.02420524]
[1750003902368,6.04572356,105690.0,105680.0,0.02420524]
[1750003902599,6.01819323,105690.0,105680.0,0.02420524]
[1750003903557,6.02483428,105690.0,105680.0,0.02420524]
[1750003903787,6.06563428,105690.0,105680.0,0.02420524]
[1750003904011,6.06563414,105690.0,105680.0,0.02420524]
[1750003904493,6.06563411,105690.0,105680.0,0.02420524]
[1750003904717,6.55133411,105690.0,105680.0,0.02420524]
[1750003904976,6.70713411,105690.0,105680.0,0.02420524]
[1750003905254,6.76371248,105690.0,105680.0,0.02420524]
[1750003905507,6.76371235,105690.0,105680.0,0.02420524]
[1750003905726,6.76371236,105690.0,105680.0,0.02420524]
[1750003905927,6.7570716,105690.0,105680.0,0.02420524]
[1750003906141,6.76371232,105690.0,105680.0,0.02420524]
[1750003906553,6.7570716,105690.0,105680.0,0.02420524]
[1750003906794,6.76371232,105690.0,105680.0,0.02420524]
[1750003907003,6.7570716,105690.0,105680.0,0.02420524]
[1750003907190,6.76371232,105690.0,105680.0,0.02420524]
[1750003907655,6.4709631,105690.0,105680.0,0.02420524]
[1750003907877,6.66744314,105690.0,105680.0,0.02420524]
[1750003908095,6.66744315,105690.0,105680.0,0.02420524]
[1750003908299,6.66080238,105690.0,105680.0,0.02420524]
[1750003908713,6.66744316,105690.0,105680.0,0.02420524]
[1750003908927,6.47096316,105690.0,105680.0,0.02420524]